[Event "Titled Tuesday Blitz October 31 Late 2023"]
[White "Tatarinov, Dmitry"]
[Black "Molenda, Marcin"]
[WhiteFideId "24160067"]
[BlackFideId "1173065"]
[WhiteElo "2725"]
[BlackElo "2474"]
[Result "0-1"]
[Round "3"]
[TimeControl "180+1"]
[Date "2023.10.31"]
[WhiteClock "0:01:35"]
[BlackClock "0:02:06"]
[Board "65"]

1. e4 {[%clk 0:02:59]}  e5 {[%clk 0:02:59]} 2. Nf3 {[%clk 0:02:59]}  Nc6 {[%clk 0:02:59]} 3. Bc4 {[%clk 0:02:58]}  Bc5 {[%clk 0:02:58]} 4. d3 {[%clk 0:02:58]}  Nf6 {[%clk 0:02:58]} 5. c3 {[%clk 0:02:59]}  d6 {[%clk 0:02:58]} 6. O-O {[%clk 0:02:58]}  a5 {[%clk 0:02:58]} 7. a4 {[%clk 0:02:48]}  O-O {[%clk 0:02:55]} 8. Bg5 {[%clk 0:02:45]}  h6 {[%clk 0:02:54]} 9. Bh4 {[%clk 0:02:45]}  Be6 {[%clk 0:02:54]} 10. Bb5 {[%clk 0:02:38]}  g5 {[%clk 0:02:54]} 11. Nxg5 {[%clk 0:02:34]}  hxg5 {[%clk 0:02:54]} 12. Bxg5 {[%clk 0:02:35]}  Kg7 {[%clk 0:02:54]} 13. Bxc6 {[%clk 0:02:34]}  bxc6 {[%clk 0:02:53]} 14. d4 {[%clk 0:02:35]}  Bb6 {[%clk 0:02:50]} 15. f4 {[%clk 0:02:32]}  exd4 {[%clk 0:02:44]} 16. cxd4 {[%clk 0:02:32]}  Rg8 {[%clk 0:02:38]} 17. Kh1 {[%clk 0:02:30]}  Kf8 {[%clk 0:02:38]} 18. e5 {[%clk 0:02:25]}  dxe5 {[%clk 0:02:38]} 19. Bh6+ {[%clk 0:02:17]}  Ke8 {[%clk 0:02:36]} 20. fxe5 {[%clk 0:02:18]}  Ng4 {[%clk 0:02:24]} 21. Bf4 {[%clk 0:02:11]}  Qxd4 {[%clk 0:02:24]} 22. Qc2 {[%clk 0:02:06]}  Nf2+ {[%clk 0:02:18]} 23. Rxf2 {[%clk 0:02:01]}  Qxf2 {[%clk 0:02:19]} 24. Qxc6+ {[%clk 0:02:01]}  Bd7 {[%clk 0:02:15]} 25. Qxa8+ {[%clk 0:02:00]}  Ke7 {[%clk 0:02:16]} 26. Bg5+ {[%clk 0:01:49]}  Rxg5 {[%clk 0:02:15]} 27. Nc3 {[%clk 0:01:35]}  c6 {[%clk 0:02:06]} 0-1


[Site "https://www.chess.com"]

[Event "Titled Tuesday Blitz October 31 Late 2023"]
[White "Gubajdullin, Alexei"]
[Black "Mmukka"]
[WhiteFideId "4141202"]
[WhiteElo "2709"]
[BlackElo "2470"]
[Result "1-0"]
[Round "3"]
[TimeControl "180+1"]
[Date "2023.10.31"]
[WhiteClock "0:01:54"]
[BlackClock "0:00:49"]
[Board "66"]

1. d4 {[%clk 0:03:00]}  d5 {[%clk 0:02:59]} 2. Nf3 {[%clk 0:02:59]}  e6 {[%clk 0:02:56]} 3. Bf4 {[%clk 0:02:59]}  Nf6 {[%clk 0:02:55]} 4. Nbd2 {[%clk 0:02:59]}  Bd6 {[%clk 0:02:54]} 5. Bg3 {[%clk 0:02:59]}  O-O {[%clk 0:02:53]} 6. e3 {[%clk 0:02:59]}  b6 {[%clk 0:02:53]} 7. Bd3 {[%clk 0:02:59]}  Ba6 {[%clk 0:02:53]} 8. Ne5 {[%clk 0:02:59]}  Bxd3 {[%clk 0:02:49]} 9. cxd3 {[%clk 0:02:59]}  c5 {[%clk 0:02:49]} 10. dxc5 {[%clk 0:02:58]}  bxc5 {[%clk 0:02:48]} 11. O-O {[%clk 0:02:58]}  Qb6 {[%clk 0:02:31]} 12. Nec4 {[%clk 0:02:55]}  dxc4 {[%clk 0:02:28]} 13. Nxc4 {[%clk 0:02:55]}  Qc6 {[%clk 0:02:22]} 14. Bxd6 {[%clk 0:02:52]}  Rd8 {[%clk 0:02:22]} 15. Qf3 {[%clk 0:02:44]}  Qxf3 {[%clk 0:01:53]} 16. gxf3 {[%clk 0:02:44]}  Nc6 {[%clk 0:01:53]} 17. Rfd1 {[%clk 0:02:34]}  Rac8 {[%clk 0:01:46]} 18. Bxc5 {[%clk 0:02:33]}  Rd5 {[%clk 0:01:43]} 19. b4 {[%clk 0:02:31]}  a5 {[%clk 0:01:40]} 20. a3 {[%clk 0:02:28]}  axb4 {[%clk 0:01:35]} 21. axb4 {[%clk 0:02:28]}  e5 {[%clk 0:01:35]} 22. e4 {[%clk 0:02:17]}  Rdd8 {[%clk 0:01:29]} 23. b5 {[%clk 0:02:16]}  Nd4 {[%clk 0:01:21]} 24. Bxd4 {[%clk 0:02:16]}  exd4 {[%clk 0:01:21]} 25. b6 {[%clk 0:02:15]}  Rb8 {[%clk 0:01:22]} 26. Ra7 {[%clk 0:02:13]}  Nd7 {[%clk 0:01:21]} 27. b7 {[%clk 0:02:10]}  Nc5 {[%clk 0:01:21]} 28. Na5 {[%clk 0:02:10]}  Re8 {[%clk 0:01:06]} 29. Rb1 {[%clk 0:02:06]}  h5 {[%clk 0:00:55]} 30. Nc6 {[%clk 0:02:05]}  Rxb7 {[%clk 0:00:54]} 31. Rbxb7 {[%clk 0:02:04]}  Nxb7 {[%clk 0:00:55]} 32. Rxb7 {[%clk 0:02:04]}  Re6 {[%clk 0:00:56]} 33. Nxd4 {[%clk 0:02:03]}  Rd6 {[%clk 0:00:56]} 34. Rb4 {[%clk 0:02:00]}  Rg6+ {[%clk 0:00:55]} 35. Kf1 {[%clk 0:01:59]}  Rd6 {[%clk 0:00:56]} 36. h4 {[%clk 0:01:59]}  g6 {[%clk 0:00:56]} 37. Ke2 {[%clk 0:01:58]}  Kg7 {[%clk 0:00:55]} 38. Ke3 {[%clk 0:01:59]}  Ra6 {[%clk 0:00:55]} 39. f4 {[%clk 0:01:57]}  Ra1 {[%clk 0:00:55]} 40. Nf3 {[%clk 0:01:57]}  Rh1 {[%clk 0:00:53]} 41. Rb3 {[%clk 0:01:56]}  Ra1 {[%clk 0:00:52]} 42. d4 {[%clk 0:01:55]}  Rc1 {[%clk 0:00:51]} 43. d5 {[%clk 0:01:55]}  Rd1 {[%clk 0:00:49]} 44. Rd3 {[%clk 0:01:54]} 1-0


[Site "https://www.chess.com"]

[Event "Titled Tuesday Blitz October 31 Late 2023"]
[White "Goltsev, Dmitry"]
[Black "Rangel, Daniel"]
[WhiteFideId "24176710"]
[BlackFideId "2124475"]
[WhiteElo "2662"]
[BlackElo "2460"]
[Result "1-0"]
[Round "3"]
[TimeControl "180+1"]
[Date "2023.10.31"]
[WhiteClock "0:00:48"]
[BlackClock "0:00:10"]
[Board "71"]

1. e4 {[%clk 0:02:58]}  c5 {[%clk 0:02:58]} 2. Nf3 {[%clk 0:02:57]}  g6 {[%clk 0:02:59]} 3. d4 {[%clk 0:02:56]}  cxd4 {[%clk 0:03:00]} 4. Qxd4 {[%clk 0:02:57]}  Nf6 {[%clk 0:03:00]} 5. Nc3 {[%clk 0:02:57]}  Nc6 {[%clk 0:03:01]} 6. Qa4 {[%clk 0:02:57]}  d6 {[%clk 0:03:01]} 7. e5 {[%clk 0:02:58]}  dxe5 {[%clk 0:03:02]} 8. Nxe5 {[%clk 0:02:58]}  Bd7 {[%clk 0:03:03]} 9. Nxd7 {[%clk 0:02:59]}  Nxd7 {[%clk 0:03:03]} 10. Bb5 {[%clk 0:02:58]}  Bg7 {[%clk 0:03:03]} 11. O-O {[%clk 0:02:58]}  O-O {[%clk 0:03:04]} 12. Bg5 {[%clk 0:02:57]}  Nb6 {[%clk 0:03:01]} 13. Qh4 {[%clk 0:02:56]}  Qc8 {[%clk 0:02:59]} 14. Rad1 {[%clk 0:02:41]}  a6 {[%clk 0:02:40]} 15. Bxc6 {[%clk 0:02:39]}  Qxc6 {[%clk 0:02:40]} 16. Bxe7 {[%clk 0:02:39]}  Rfe8 {[%clk 0:02:41]} 17. Bg5 {[%clk 0:02:17]}  Nc4 {[%clk 0:02:39]} 18. Nd5 {[%clk 0:02:10]}  Nxb2 {[%clk 0:02:15]} 19. Rd2 {[%clk 0:01:32]}  Nc4 {[%clk 0:01:50]} 20. Rdd1 {[%clk 0:01:30]}  Nb2 {[%clk 0:01:48]} 21. Rd4 {[%clk 0:01:29]}  Re6 {[%clk 0:00:48]} 22. Ne7+ {[%clk 0:00:59]}  Rxe7 {[%clk 0:00:47]} 23. Bxe7 {[%clk 0:01:00]}  Bxd4 {[%clk 0:00:37]} 24. Qxd4 {[%clk 0:00:59]}  Nc4 {[%clk 0:00:37]} 25. Rd1 {[%clk 0:00:55]}  Nb6 {[%clk 0:00:21]} 26. Bf6 {[%clk 0:00:51]}  Qc4 {[%clk 0:00:10]} 27. Qd8+ {[%clk 0:00:48]} 1-0


[Site "https://www.chess.com"]

[Event "Titled Tuesday Blitz October 31 Late 2023"]
[White "Ozates, Tuna"]
[Black "Rakitic2010"]
[WhiteFideId "6354521"]
[WhiteElo "2655"]
[BlackElo "2457"]
[Result "0-1"]
[Round "3"]
[TimeControl "180+1"]
[Date "2023.10.31"]
[WhiteClock "0:01:02"]
[BlackClock "0:00:58"]
[Board "73"]

1. e4 {[%clk 0:03:00]}  c5 {[%clk 0:02:55]} 2. Nc3 {[%clk 0:03:00]}  e6 {[%clk 0:02:53]} 3. g3 {[%clk 0:03:00]}  Nc6 {[%clk 0:02:50]} 4. Bg2 {[%clk 0:03:00]}  Nf6 {[%clk 0:02:49]} 5. Nge2 {[%clk 0:02:57]}  Be7 {[%clk 0:02:49]} 6. O-O {[%clk 0:02:55]}  O-O {[%clk 0:02:50]} 7. d4 {[%clk 0:02:43]}  cxd4 {[%clk 0:02:49]} 8. Nxd4 {[%clk 0:02:44]}  d6 {[%clk 0:02:44]} 9. Nxc6 {[%clk 0:02:42]}  bxc6 {[%clk 0:02:44]} 10. e5 {[%clk 0:02:38]}  dxe5 {[%clk 0:02:44]} 11. Bxc6 {[%clk 0:02:38]}  Ba6 {[%clk 0:02:43]} 12. Bxa8 {[%clk 0:02:29]}  Qxa8 {[%clk 0:02:43]} 13. Qe1 {[%clk 0:02:06]}  Qc6 {[%clk 0:01:58]} 14. Qxe5 {[%clk 0:02:04]}  Bc5 {[%clk 0:01:43]} 15. Re1 {[%clk 0:01:43]}  Bb7 {[%clk 0:01:12]} 16. Kf1 {[%clk 0:01:05]}  Qg2+ {[%clk 0:01:07]} 17. Ke2 {[%clk 0:01:02]}  Qf3+ {[%clk 0:00:58]} 0-1


[Site "https://www.chess.com"]

[Event "Titled Tuesday Blitz October 31 Late 2023"]
[White "Schwabeneder, Florian"]
[Black "Miszler, Levente"]
[WhiteFideId "1626191"]
[BlackFideId "763276"]
[WhiteElo "2630"]
[BlackElo "2438"]
[Result "1-0"]
[Round "3"]
[TimeControl "180+1"]
[Date "2023.10.31"]
[WhiteClock "0:01:14"]
[BlackClock "0:02:34"]
[Board "79"]

1. d4 {[%clk 0:03:00]}  Nf6 {[%clk 0:02:58]} 2. Nf3 {[%clk 0:02:59]}  e6 {[%clk 0:02:58]} 3. g3 {[%clk 0:02:56]}  d5 {[%clk 0:02:56]} 4. Bg2 {[%clk 0:02:56]}  Be7 {[%clk 0:02:57]} 5. O-O {[%clk 0:02:56]}  O-O {[%clk 0:02:57]} 6. c4 {[%clk 0:02:56]}  dxc4 {[%clk 0:02:57]} 7. Qa4 {[%clk 0:02:52]}  a6 {[%clk 0:02:55]} 8. Qxc4 {[%clk 0:02:52]}  b5 {[%clk 0:02:55]} 9. Qc2 {[%clk 0:02:52]}  Bb7 {[%clk 0:02:55]} 10. Bd2 {[%clk 0:02:50]}  Be4 {[%clk 0:02:55]} 11. Qc1 {[%clk 0:02:50]}  c6 {[%clk 0:02:56]} 12. a4 {[%clk 0:02:45]}  Nbd7 {[%clk 0:02:53]} 13. Nc3 {[%clk 0:02:41]}  Bxf3 {[%clk 0:02:50]} 14. Bxf3 {[%clk 0:02:40]}  Nd5 {[%clk 0:02:51]} 15. Nxd5 {[%clk 0:02:29]}  cxd5 {[%clk 0:02:50]} 16. axb5 {[%clk 0:02:27]}  axb5 {[%clk 0:02:51]} 17. Qc6 {[%clk 0:02:25]}  Qc8 {[%clk 0:02:46]} 18. Qxb5 {[%clk 0:01:45]}  Rb8 {[%clk 0:02:45]} 19. Qa4 {[%clk 0:01:34]}  Rxb2 {[%clk 0:02:43]} 20. Rfc1 {[%clk 0:01:34]}  Qb7 {[%clk 0:02:42]} 21. Bf4 {[%clk 0:01:25]}  Nb6 {[%clk 0:02:38]} 22. Qa7 {[%clk 0:01:17]}  Nc4 {[%clk 0:02:38]} 23. Qxb7 {[%clk 0:01:15]}  Rxb7 {[%clk 0:02:34]} 24. Rxc4 {[%clk 0:01:14]} 1-0


[Site "https://www.chess.com"]

[Event "Titled Tuesday Blitz October 31 Late 2023"]
[White "Seemann, Jakub"]
[Black "Mindhunter08"]
[WhiteFideId "21874697"]
[WhiteElo "2626"]
[BlackElo "2436"]
[Result "1-0"]
[Round "3"]
[TimeControl "180+1"]
[Date "2023.10.31"]
[WhiteClock "0:01:48"]
[BlackClock "0:00:07"]
[Board "80"]

1. b3 {[%clk 0:03:00]}  d5 {[%clk 0:03:00]} 2. Bb2 {[%clk 0:03:01]}  Bf5 {[%clk 0:03:00]} 3. Nf3 {[%clk 0:03:01]}  Nf6 {[%clk 0:03:00]} 4. e3 {[%clk 0:03:02]}  h6 {[%clk 0:03:00]} 5. Be2 {[%clk 0:03:02]}  e6 {[%clk 0:03:01]} 6. O-O {[%clk 0:03:02]}  Bh7 {[%clk 0:03:01]} 7. c4 {[%clk 0:03:03]}  c6 {[%clk 0:03:01]} 8. Nc3 {[%clk 0:03:03]}  Nbd7 {[%clk 0:03:02]} 9. Rc1 {[%clk 0:03:02]}  Be7 {[%clk 0:03:02]} 10. d3 {[%clk 0:03:02]}  O-O {[%clk 0:03:00]} 11. Rc2 {[%clk 0:03:01]}  a5 {[%clk 0:02:55]} 12. Rd2 {[%clk 0:03:00]}  Qb6 {[%clk 0:02:47]} 13. Qa1 {[%clk 0:03:00]}  Qa6 {[%clk 0:02:41]} 14. Rc1 {[%clk 0:02:58]}  b5 {[%clk 0:02:38]} 15. cxb5 {[%clk 0:02:56]}  cxb5 {[%clk 0:02:38]} 16. a4 {[%clk 0:02:55]}  b4 {[%clk 0:02:30]} 17. Nb5 {[%clk 0:02:55]}  Rac8 {[%clk 0:02:30]} 18. Rdc2 {[%clk 0:02:52]}  Rxc2 {[%clk 0:02:24]} 19. Rxc2 {[%clk 0:02:53]}  Rc8 {[%clk 0:02:25]} 20. Qc1 {[%clk 0:02:53]}  Rxc2 {[%clk 0:02:10]} 21. Qxc2 {[%clk 0:02:54]}  Qb7 {[%clk 0:02:10]} 22. Nfd4 {[%clk 0:02:50]}  Nc5 {[%clk 0:02:05]} 23. Nf3 {[%clk 0:02:41]}  Nfd7 {[%clk 0:01:55]} 24. Ne5 {[%clk 0:02:35]}  Nxe5 {[%clk 0:01:38]} 25. Bxe5 {[%clk 0:02:36]}  Bg6 {[%clk 0:01:36]} 26. h4 {[%clk 0:02:32]}  Nd7 {[%clk 0:01:30]} 27. Bg3 {[%clk 0:02:21]}  Nc5 {[%clk 0:01:08]} 28. h5 {[%clk 0:02:21]}  Bf5 {[%clk 0:01:07]} 29. Bd6 {[%clk 0:02:12]}  Bxd6 {[%clk 0:00:28]} 30. Nxd6 {[%clk 0:02:13]}  Qc7 {[%clk 0:00:24]} 31. Nxf5 {[%clk 0:02:11]}  exf5 {[%clk 0:00:25]} 32. d4 {[%clk 0:02:11]}  Ne6 {[%clk 0:00:24]} 33. Qxf5 {[%clk 0:02:10]}  Qc1+ {[%clk 0:00:24]} 34. Kh2 {[%clk 0:02:10]}  Qb2 {[%clk 0:00:23]} 35. Bg4 {[%clk 0:02:02]}  Qxb3 {[%clk 0:00:21]} 36. Qe5 {[%clk 0:02:02]}  Ng5 {[%clk 0:00:05]} 37. Qb8+ {[%clk 0:01:59]}  Kh7 {[%clk 0:00:05]} 38. Bf5+ {[%clk 0:01:59]}  g6 {[%clk 0:00:06]} 39. hxg6+ {[%clk 0:02:00]}  Kg7 {[%clk 0:00:06]} 40. Qc7 {[%clk 0:02:01]}  Qc3 {[%clk 0:00:05]} 41. Qe5+ {[%clk 0:01:59]}  Kg8 {[%clk 0:00:04]} 42. gxf7+ {[%clk 0:01:59]}  Nxf7 {[%clk 0:00:04]} 43. Be6 {[%clk 0:01:57]}  Qc6 {[%clk 0:00:04]} 44. Qb8+ {[%clk 0:01:54]}  Kg7 {[%clk 0:00:04]} 45. Qg3+ {[%clk 0:01:53]}  Kf8 {[%clk 0:00:05]} 46. Qg4 {[%clk 0:01:48]}  Qd6+ {[%clk 0:00:04]} 47. g3 {[%clk 0:01:48]}  Ng5 {[%clk 0:00:05]} 48. Qf5+ {[%clk 0:01:48]}  Ke7 {[%clk 0:00:06]} 49. Bxd5 {[%clk 0:01:48]}  Qb6 {[%clk 0:00:02]} 50. f4 {[%clk 0:01:48]}  b3 {[%clk 0:00:01]} 51. fxg5 {[%clk 0:01:47]}  b2 {[%clk 0:00:02]} 52. Qf7+ {[%clk 0:01:47]}  Kd8 {[%clk 0:00:02]} 53. Qf8+ {[%clk 0:01:47]}  Kd7 {[%clk 0:00:02]} 54. Qf5+ {[%clk 0:01:44]}  Kd8 {[%clk 0:00:03]} 55. Ba2 {[%clk 0:01:42]}  Qb4 {[%clk 0:00:03]} 56. Qd5+ {[%clk 0:01:42]}  Ke7 {[%clk 0:00:03]} 57. Qc5+ {[%clk 0:01:42]}  Qxc5 {[%clk 0:00:02]} 58. dxc5 {[%clk 0:01:43]}  hxg5 {[%clk 0:00:02]} 59. Kh3 {[%clk 0:01:43]}  Kd7 {[%clk 0:00:03]} 60. Bb1 {[%clk 0:01:43]}  Kc6 {[%clk 0:00:04]} 61. Kg4 {[%clk 0:01:44]}  Kxc5 {[%clk 0:00:05]} 62. Kxg5 {[%clk 0:01:45]}  Kb4 {[%clk 0:00:06]} 63. e4 {[%clk 0:01:45]}  Kxa4 {[%clk 0:00:06]} 64. e5 {[%clk 0:01:46]}  Kb3 {[%clk 0:00:07]} 65. e6 {[%clk 0:01:46]}  a4 {[%clk 0:00:08]} 66. e7 {[%clk 0:01:47]}  a3 {[%clk 0:00:08]} 67. e8=Q {[%clk 0:01:47]}  a2 {[%clk 0:00:09]} 68. Qe6+ {[%clk 0:01:48]}  Kc3 {[%clk 0:00:07]} 69. Qxa2 {[%clk 0:01:48]} 1-0


[Site "https://www.chess.com"]

[Event "Titled Tuesday Blitz October 31 Late 2023"]
[White "Belenkaya, Dina"]
[Black "Bjelobrk, Igor"]
[WhiteFideId "24142654"]
[BlackFideId "4300726"]
[WhiteElo "2434"]
[BlackElo "2624"]
[Result "1/2-1/2"]
[Round "3"]
[TimeControl "180+1"]
[Date "2023.10.31"]
[WhiteClock "0:00:10"]
[BlackClock "0:00:11"]
[Board "81"]

1. Nf3 {[%clk 0:02:55]}  c5 {[%clk 0:02:56]} 2. g3 {[%clk 0:02:55]}  g6 {[%clk 0:02:50]} 3. e4 {[%clk 0:02:53]}  Bg7 {[%clk 0:02:50]} 4. Bg2 {[%clk 0:02:53]}  Nc6 {[%clk 0:02:50]} 5. d3 {[%clk 0:02:53]}  d6 {[%clk 0:02:50]} 6. O-O {[%clk 0:02:53]}  Rb8 {[%clk 0:02:47]} 7. Nc3 {[%clk 0:02:47]}  b5 {[%clk 0:02:47]} 8. h4 {[%clk 0:02:35]}  h6 {[%clk 0:02:45]} 9. Be3 {[%clk 0:02:11]}  b4 {[%clk 0:02:44]} 10. Nd5 {[%clk 0:02:10]}  e6 {[%clk 0:02:43]} 11. Nf4 {[%clk 0:02:07]}  Bxb2 {[%clk 0:02:39]} 12. Rb1 {[%clk 0:02:07]}  Bg7 {[%clk 0:02:39]} 13. d4 {[%clk 0:02:07]}  cxd4 {[%clk 0:02:31]} 14. Nxd4 {[%clk 0:02:04]}  Nxd4 {[%clk 0:02:31]} 15. Bxd4 {[%clk 0:02:05]}  e5 {[%clk 0:02:32]} 16. Bb2 {[%clk 0:01:55]}  Nf6 {[%clk 0:02:26]} 17. Nd5 {[%clk 0:01:53]}  Nxd5 {[%clk 0:02:26]} 18. Qxd5 {[%clk 0:01:53]}  O-O {[%clk 0:02:24]} 19. f4 {[%clk 0:01:44]}  Be6 {[%clk 0:02:21]} 20. Qd2 {[%clk 0:01:43]}  Bxa2 {[%clk 0:02:20]} 21. Ra1 {[%clk 0:01:43]}  Bc4 {[%clk 0:02:20]} 22. Rfd1 {[%clk 0:01:43]}  a5 {[%clk 0:02:08]} 23. Qxd6 {[%clk 0:01:37]}  Qxd6 {[%clk 0:02:06]} 24. Rxd6 {[%clk 0:01:38]}  exf4 {[%clk 0:02:06]} 25. Bxg7 {[%clk 0:01:39]}  Kxg7 {[%clk 0:02:06]} 26. gxf4 {[%clk 0:01:38]}  Ra8 {[%clk 0:01:55]} 27. e5 {[%clk 0:01:38]}  Ra7 {[%clk 0:01:55]} 28. Rb6 {[%clk 0:01:37]}  Rd8 {[%clk 0:01:29]} 29. h5 {[%clk 0:01:28]}  gxh5 {[%clk 0:01:26]} 30. f5 {[%clk 0:01:28]}  Rd2 {[%clk 0:01:24]} 31. f6+ {[%clk 0:01:28]}  Kg6 {[%clk 0:01:19]} 32. Be4+ {[%clk 0:01:21]}  Kg5 {[%clk 0:01:19]} 33. Rc6 {[%clk 0:00:49]}  Be6 {[%clk 0:01:16]} 34. Rf1 {[%clk 0:00:37]}  Re2 {[%clk 0:01:09]} 35. Rxe6 {[%clk 0:00:29]}  fxe6 {[%clk 0:01:09]} 36. Bd3 {[%clk 0:00:29]}  Rxe5 {[%clk 0:00:49]} 37. f7 {[%clk 0:00:30]}  Rxf7 {[%clk 0:00:45]} 38. Rxf7 {[%clk 0:00:31]}  Re3 {[%clk 0:00:35]} 39. Kf2 {[%clk 0:00:28]}  Rh3 {[%clk 0:00:35]} 40. Ra7 {[%clk 0:00:21]}  b3 {[%clk 0:00:35]} 41. Rxa5+ {[%clk 0:00:20]}  Kf6 {[%clk 0:00:35]} 42. cxb3 {[%clk 0:00:15]}  Rxd3 {[%clk 0:00:34]} 43. Rxh5 {[%clk 0:00:15]}  Kg6 {[%clk 0:00:28]} 44. Rb5 {[%clk 0:00:15]}  h5 {[%clk 0:00:26]} 45. Ke2 {[%clk 0:00:15]}  Rd8 {[%clk 0:00:21]} 46. Re5 {[%clk 0:00:14]}  Re8 {[%clk 0:00:20]} 47. b4 {[%clk 0:00:14]}  h4 {[%clk 0:00:21]} 48. Kf3 {[%clk 0:00:10]}  h3 {[%clk 0:00:14]} 49. Kg3 {[%clk 0:00:05]}  Kf6 {[%clk 0:00:14]} 50. Rh5 {[%clk 0:00:05]}  Rb8 {[%clk 0:00:13]} 51. Rxh3 {[%clk 0:00:02]}  Rxb4 {[%clk 0:00:13]} 52. Kf2 {[%clk 0:00:02]}  Re4 {[%clk 0:00:12]} 53. Kf3 {[%clk 0:00:02]}  Re1 {[%clk 0:00:12]} 54. Rh6+ {[%clk 0:00:03]}  Ke5 {[%clk 0:00:12]} 55. Rh4 {[%clk 0:00:03]}  Kd5 {[%clk 0:00:12]} 56. Kf2 {[%clk 0:00:04]}  Re5 {[%clk 0:00:11]} 57. Ra4 {[%clk 0:00:03]}  Kd6 {[%clk 0:00:10]} 58. Ra6+ {[%clk 0:00:04]}  Ke7 {[%clk 0:00:10]} 59. Ra7+ {[%clk 0:00:04]}  Kf6 {[%clk 0:00:11]} 60. Ra6 {[%clk 0:00:05]}  Re4 {[%clk 0:00:11]} 61. Kf3 {[%clk 0:00:05]}  Kf5 {[%clk 0:00:11]} 62. Ra8 {[%clk 0:00:05]}  Re1 {[%clk 0:00:10]} 63. Ra5+ {[%clk 0:00:06]}  e5 {[%clk 0:00:10]} 64. Ra4 {[%clk 0:00:05]}  e4+ {[%clk 0:00:09]} 65. Kf2 {[%clk 0:00:05]}  Rb1 {[%clk 0:00:09]} 66. Ra8 {[%clk 0:00:05]}  Rb2+ {[%clk 0:00:07]} 67. Ke3 {[%clk 0:00:06]}  Rb3+ {[%clk 0:00:07]} 68. Ke2 {[%clk 0:00:06]}  Rb5 {[%clk 0:00:03]} 69. Rf8+ {[%clk 0:00:06]}  Ke5 {[%clk 0:00:03]} 70. Re8+ {[%clk 0:00:06]}  Kd4 {[%clk 0:00:04]} 71. Rd8+ {[%clk 0:00:07]}  Rd5 {[%clk 0:00:04]} 72. Rxd5+ {[%clk 0:00:07]}  Kxd5 {[%clk 0:00:05]} 73. Ke3 {[%clk 0:00:08]}  Ke5 {[%clk 0:00:06]} 74. Ke2 {[%clk 0:00:08]}  Kd4 {[%clk 0:00:07]} 75. Kd2 {[%clk 0:00:08]}  e3+ {[%clk 0:00:08]} 76. Ke2 {[%clk 0:00:09]}  Ke4 {[%clk 0:00:09]} 77. Ke1 {[%clk 0:00:09]}  Kd3 {[%clk 0:00:10]} 78. Kd1 {[%clk 0:00:10]}  e2+ {[%clk 0:00:11]} 79. Ke1 {[%clk 0:00:10]}  Ke3 {[%clk 0:00:11]} 1/2-1/2


[Site "https://www.chess.com"]

[Event "Titled Tuesday Blitz October 31 Late 2023"]
[White "Yelisieiev, Yevhenii"]
[Black "whiteglovethief"]
[WhiteFideId "14139642"]
[WhiteElo "2615"]
[BlackElo "2434"]
[Result "1-0"]
[Round "3"]
[TimeControl "180+1"]
[Date "2023.10.31"]
[WhiteClock "0:01:03"]
[BlackClock "0:01:07"]
[Board "82"]

1. d4 {[%clk 0:02:59]}  d5 {[%clk 0:02:56]} 2. Nf3 {[%clk 0:02:57]}  e6 {[%clk 0:02:56]} 3. c4 {[%clk 0:02:52]}  Nf6 {[%clk 0:02:55]} 4. Nc3 {[%clk 0:02:51]}  h6 {[%clk 0:02:55]} 5. Bf4 {[%clk 0:02:42]}  Bd6 {[%clk 0:02:55]} 6. Bxd6 {[%clk 0:02:41]}  Qxd6 {[%clk 0:02:55]} 7. e3 {[%clk 0:02:41]}  O-O {[%clk 0:02:55]} 8. Qc2 {[%clk 0:02:40]}  a6 {[%clk 0:02:53]} 9. cxd5 {[%clk 0:02:23]}  exd5 {[%clk 0:02:52]} 10. Bd3 {[%clk 0:02:24]}  c6 {[%clk 0:02:48]} 11. O-O {[%clk 0:02:23]}  Bg4 {[%clk 0:02:48]} 12. Ne5 {[%clk 0:02:23]}  Nbd7 {[%clk 0:02:48]} 13. f4 {[%clk 0:02:19]}  Nb6 {[%clk 0:02:23]} 14. a4 {[%clk 0:02:11]}  Bc8 {[%clk 0:02:17]} 15. a5 {[%clk 0:02:06]}  Nbd7 {[%clk 0:02:14]} 16. Kh1 {[%clk 0:02:02]}  c5 {[%clk 0:02:05]} 17. g4 {[%clk 0:01:59]}  cxd4 {[%clk 0:02:02]} 18. exd4 {[%clk 0:01:59]}  Ne8 {[%clk 0:01:58]} 19. Rg1 {[%clk 0:01:54]}  f6 {[%clk 0:01:56]} 20. Bh7+ {[%clk 0:01:53]}  Kh8 {[%clk 0:01:56]} 21. Ng6+ {[%clk 0:01:50]}  Kxh7 {[%clk 0:01:56]} 22. Nxf8+ {[%clk 0:01:50]}  Kg8 {[%clk 0:01:56]} 23. Ng6 {[%clk 0:01:49]}  Nf8 {[%clk 0:01:48]} 24. Rae1 {[%clk 0:01:35]}  Bd7 {[%clk 0:01:46]} 25. g5 {[%clk 0:01:29]}  hxg5 {[%clk 0:01:40]} 26. fxg5 {[%clk 0:01:28]}  fxg5 {[%clk 0:01:35]} 27. Rxg5 {[%clk 0:01:20]}  Nxg6 {[%clk 0:01:30]} 28. Rxg6 {[%clk 0:01:18]}  Qf4 {[%clk 0:01:29]} 29. Qg2 {[%clk 0:01:13]}  Bf5 {[%clk 0:01:07]} 30. Nxd5 {[%clk 0:01:03]} 1-0


[Site "https://www.chess.com"]

[Event "Titled Tuesday Blitz October 31 Late 2023"]
[White "maciejbrzeski128"]
[Black "Krishnan, Varun"]
[BlackFideId "5054508"]
[WhiteElo "2432"]
[BlackElo "2608"]
[Result "0-1"]
[Round "3"]
[TimeControl "180+1"]
[Date "2023.10.31"]
[WhiteClock "0:00:00"]
[BlackClock "0:00:14"]
[Board "83"]

1. e4 {[%clk 0:02:59]}  c5 {[%clk 0:02:58]} 2. Nc3 {[%clk 0:02:59]}  a6 {[%clk 0:02:56]} 3. f4 {[%clk 0:02:58]}  b5 {[%clk 0:02:55]} 4. Nf3 {[%clk 0:02:56]}  Bb7 {[%clk 0:02:55]} 5. d3 {[%clk 0:02:57]}  e6 {[%clk 0:02:55]} 6. g3 {[%clk 0:02:56]}  d5 {[%clk 0:02:54]} 7. Qe2 {[%clk 0:02:53]}  Be7 {[%clk 0:02:52]} 8. Bg2 {[%clk 0:02:53]}  Nf6 {[%clk 0:02:48]} 9. e5 {[%clk 0:02:53]}  Nfd7 {[%clk 0:02:48]} 10. O-O {[%clk 0:02:53]}  O-O {[%clk 0:02:47]} 11. a4 {[%clk 0:02:51]}  b4 {[%clk 0:02:47]} 12. Nb1 {[%clk 0:02:48]}  Nc6 {[%clk 0:02:46]} 13. b3 {[%clk 0:02:46]}  Qb6 {[%clk 0:02:21]} 14. Kh1 {[%clk 0:02:38]}  f6 {[%clk 0:02:06]} 15. Bb2 {[%clk 0:02:34]}  fxe5 {[%clk 0:02:05]} 16. fxe5 {[%clk 0:02:30]}  Rf7 {[%clk 0:02:04]} 17. Nbd2 {[%clk 0:02:29]}  Raf8 {[%clk 0:02:03]} 18. h4 {[%clk 0:01:59]}  Qc7 {[%clk 0:01:35]} 19. Rae1 {[%clk 0:01:47]}  a5 {[%clk 0:01:16]} 20. Kh2 {[%clk 0:01:40]}  Nb6 {[%clk 0:01:08]} 21. Bh3 {[%clk 0:01:33]}  Nd8 {[%clk 0:01:06]} 22. Ng5 {[%clk 0:01:25]}  Bxg5 {[%clk 0:01:05]} 23. hxg5 {[%clk 0:01:25]}  c4 {[%clk 0:01:00]} 24. Bd4 {[%clk 0:01:17]}  cxb3 {[%clk 0:00:44]} 25. cxb3 {[%clk 0:01:16]}  Ba6 {[%clk 0:00:41]} 26. Rxf7 {[%clk 0:01:10]}  Rxf7 {[%clk 0:00:40]} 27. Nf3 {[%clk 0:01:03]}  Nd7 {[%clk 0:00:39]} 28. g6 {[%clk 0:01:02]}  hxg6 {[%clk 0:00:38]} 29. Ng5 {[%clk 0:01:01]}  Re7 {[%clk 0:00:28]} 30. Qg4 {[%clk 0:00:26]}  Qc2+ {[%clk 0:00:24]} 31. Bg2 {[%clk 0:00:26]}  Bxd3 {[%clk 0:00:16]} 32. Qh4 {[%clk 0:00:25]}  Nf8 {[%clk 0:00:16]} 33. Re3 {[%clk 0:00:15]}  Rc7 {[%clk 0:00:15]} 34. Rf3 {[%clk 0:00:15]}  Nf7 {[%clk 0:00:15]} 35. Nxf7 {[%clk 0:00:09]}  Rxf7 {[%clk 0:00:15]} 36. Rxf7 {[%clk 0:00:07]}  Kxf7 {[%clk 0:00:15]} 37. Qd8 {[%clk 0:00:00]}  Be4 {[%clk 0:00:14]} 0-1


[Site "https://www.chess.com"]